[Event "Titled Tuesday Blitz August 17 2021"]
[White "Maksimovic, Bojan"]
[Black "Eynullayev, Atilla"]
[WhiteFideId "14408120"]
[BlackFideId "13413570"]
[WhiteElo "2439"]
[BlackElo "1997"]
[Result "0-1"]
[Round "07"]
[TimeControl "180+1"]
[Date "2021.08.17"]
[WhiteClock "0:00:07"]
[BlackClock "0:00:14"]

1. e4 {[%clk 0:03:00]}  c5 {[%clk 0:02:58]} 2. Nf3 {[%clk 0:03:01]}  e6 {[%clk 0:02:55]} 3. d3 {[%clk 0:03:01]}  Nc6 {[%clk 0:02:52]} 4. g3 {[%clk 0:03:00]}  d5 {[%clk 0:02:50]} 5. Nbd2 {[%clk 0:03:00]}  Nf6 {[%clk 0:02:50]} 6. Bg2 {[%clk 0:03:00]}  g6 {[%clk 0:02:50]} 7. O-O {[%clk 0:03:00]}  Bg7 {[%clk 0:02:51]} 8. Re1 {[%clk 0:03:01]}  O-O {[%clk 0:02:51]} 9. c3 {[%clk 0:03:01]}  a5 {[%clk 0:02:50]} 10. a4 {[%clk 0:03:01]}  b6 {[%clk 0:02:49]} 11. exd5 {[%clk 0:02:59]}  exd5 {[%clk 0:02:48]} 12. Nb3 {[%clk 0:02:55]}  Ra7 {[%clk 0:02:48]} 13. d4 {[%clk 0:02:55]}  c4 {[%clk 0:02:48]} 14. Nbd2 {[%clk 0:02:56]}  Re7 {[%clk 0:02:47]} 15. Rxe7 {[%clk 0:02:56]}  Qxe7 {[%clk 0:02:45]} 16. b3 {[%clk 0:02:55]}  Qc7 {[%clk 0:02:37]} 17. bxc4 {[%clk 0:02:54]}  dxc4 {[%clk 0:02:38]} 18. Ba3 {[%clk 0:02:54]}  Rd8 {[%clk 0:02:34]} 19. Qf1 {[%clk 0:02:46]}  Ba6 {[%clk 0:02:26]} 20. Qc1 {[%clk 0:02:19]}  Nd5 {[%clk 0:02:23]} 21. Bf1 {[%clk 0:02:16]}  Na7 {[%clk 0:01:44]} 22. Bb2 {[%clk 0:02:01]}  h5 {[%clk 0:01:40]} 23. Qc2 {[%clk 0:02:00]}  Nc8 {[%clk 0:01:36]} 24. Re1 {[%clk 0:01:59]}  Nd6 {[%clk 0:01:36]} 25. Ne4 {[%clk 0:01:56]}  Nf5 {[%clk 0:01:16]} 26. Bc1 {[%clk 0:01:41]}  Re8 {[%clk 0:01:12]} 27. Bd2 {[%clk 0:01:18]}  Bb7 {[%clk 0:01:11]} 28. Ne5 {[%clk 0:01:04]}  Bxe5 {[%clk 0:01:02]} 29. dxe5 {[%clk 0:01:04]}  Rxe5 {[%clk 0:01:02]} 30. Bg2 {[%clk 0:00:47]}  Qe7 {[%clk 0:00:58]} 31. Rb1 {[%clk 0:00:37]}  Nde3 {[%clk 0:00:51]} 32. Bxe3 {[%clk 0:00:31]}  Bxe4 {[%clk 0:00:51]} 33. Bxe4 {[%clk 0:00:30]}  Nxe3 {[%clk 0:00:45]} 34. fxe3 {[%clk 0:00:20]}  Rxe4 {[%clk 0:00:45]} 35. Rxb6 {[%clk 0:00:19]}  Rxe3 {[%clk 0:00:46]} 36. Kf2 {[%clk 0:00:08]}  Rd3 {[%clk 0:00:42]} 37. Rb8+ {[%clk 0:00:08]}  Kg7 {[%clk 0:00:42]} 38. Rb2 {[%clk 0:00:02]}  Qe3+ {[%clk 0:00:38]} 39. Kg2 {[%clk 0:00:01]}  Rxc3 {[%clk 0:00:38]} 40. Qf2 {[%clk 0:00:01]}  Qxf2+ {[%clk 0:00:38]} 41. Kxf2 {[%clk 0:00:01]}  Ra3 {[%clk 0:00:36]} 42. Rb5 {[%clk 0:00:01]}  Rxa4 {[%clk 0:00:36]} 43. Rc5 {[%clk 0:00:02]}  Ra2+ {[%clk 0:00:35]} 44. Kg1 {[%clk 0:00:03]}  Rc2 {[%clk 0:00:32]} 45. Rxa5 {[%clk 0:00:03]}  c3 {[%clk 0:00:32]} 46. Rc5 {[%clk 0:00:03]}  Kf6 {[%clk 0:00:31]} 47. Rc7 {[%clk 0:00:02]}  g5 {[%clk 0:00:29]} 48. h3 {[%clk 0:00:02]}  Kg6 {[%clk 0:00:28]} 49. Kf1 {[%clk 0:00:02]}  f6 {[%clk 0:00:25]} 50. Rc5 {[%clk 0:00:02]}  Kf7 {[%clk 0:00:24]} 51. Rc6 {[%clk 0:00:02]}  Ke7 {[%clk 0:00:24]} 52. Kg1 {[%clk 0:00:03]}  g4 {[%clk 0:00:17]} 53. h4 {[%clk 0:00:02]}  Kf7 {[%clk 0:00:14]} 54. Rc5 {[%clk 0:00:02]}  Kg6 {[%clk 0:00:14]} 55. Kf1 {[%clk 0:00:03]}  f5 {[%clk 0:00:14]} 56. Rc6+ {[%clk 0:00:02]}  Kf7 {[%clk 0:00:14]} 57. Ke1 {[%clk 0:00:03]}  f4 {[%clk 0:00:14]} 58. gxf4 {[%clk 0:00:03]}  g3 {[%clk 0:00:14]} 59. Kf1 {[%clk 0:00:03]}  Rf2+ {[%clk 0:00:12]} 60. Kg1 {[%clk 0:00:03]}  c2 {[%clk 0:00:13]} 61. f5 {[%clk 0:00:02]}  Ke7 {[%clk 0:00:13]} 62. f6+ {[%clk 0:00:02]}  Kf7 {[%clk 0:00:14]} 63. Rc7+ {[%clk 0:00:01]}  Kxf6 {[%clk 0:00:14]} 64. Rc5 {[%clk 0:00:01]}  Rd2 {[%clk 0:00:12]} 65. Rc6+ {[%clk 0:00:01]}  Ke5 {[%clk 0:00:12]} 66. Rc5+ {[%clk 0:00:02]}  Kd4 {[%clk 0:00:12]} 67. Rxh5 {[%clk 0:00:01]}  Rd1+ {[%clk 0:00:12]} 68. Kg2 {[%clk 0:00:02]}  c1=Q {[%clk 0:00:12]} 69. Rg5 {[%clk 0:00:03]}  Qd2+ {[%clk 0:00:13]} 70. Kxg3 {[%clk 0:00:03]}  Rg1+ {[%clk 0:00:12]} 71. Kf3 {[%clk 0:00:03]}  Rxg5 {[%clk 0:00:12]} 72. hxg5 {[%clk 0:00:04]}  Qxg5 {[%clk 0:00:13]} 73. Kf2 {[%clk 0:00:05]}  Qe3+ {[%clk 0:00:13]} 74. Kf1 {[%clk 0:00:06]}  Qd2 {[%clk 0:00:13]} 75. Kg1 {[%clk 0:00:07]}  Ke3 {[%clk 0:00:13]} 76. Kh1 {[%clk 0:00:07]}  Kf3 {[%clk 0:00:14]} 0-1


[Site "https://www.chess.com"]

[Event "Titled Tuesday Blitz August 17 2021"]
[White "Matinian, Nikita"]
[Black "Kamsky, Gata"]
[WhiteFideId "24129100"]
[BlackFideId "2000024"]
[WhiteElo "2410"]
[BlackElo "2644"]
[Result "0-1"]
[Round "07"]
[TimeControl "180+1"]
[Date "2021.08.17"]
[WhiteClock "0:00:03"]
[BlackClock "0:00:11"]

1. e4 {[%clk 0:03:00]}  c5 {[%clk 0:02:54]} 2. Nf3 {[%clk 0:03:01]}  e6 {[%clk 0:02:53]} 3. d4 {[%clk 0:03:01]}  cxd4 {[%clk 0:02:53]} 4. Nxd4 {[%clk 0:03:02]}  a6 {[%clk 0:02:53]} 5. Nc3 {[%clk 0:03:02]}  b5 {[%clk 0:02:53]} 6. Bd3 {[%clk 0:03:02]}  Qb6 {[%clk 0:02:53]} 7. Nb3 {[%clk 0:03:03]}  Qc7 {[%clk 0:02:53]} 8. a4 {[%clk 0:03:00]}  b4 {[%clk 0:02:52]} 9. Ne2 {[%clk 0:03:00]}  Nf6 {[%clk 0:02:45]} 10. a5 {[%clk 0:02:55]}  Bb7 {[%clk 0:02:44]} 11. Ng3 {[%clk 0:02:52]}  d5 {[%clk 0:02:43]} 12. Qe2 {[%clk 0:02:50]}  Nbd7 {[%clk 0:02:41]} 13. O-O {[%clk 0:02:41]}  Be7 {[%clk 0:02:38]} 14. Bg5 {[%clk 0:02:06]}  O-O {[%clk 0:01:46]} 15. exd5 {[%clk 0:02:02]}  Bxd5 {[%clk 0:01:45]} 16. Nh5 {[%clk 0:01:55]}  h6 {[%clk 0:01:22]} 17. Bf4 {[%clk 0:01:34]}  Qb7 {[%clk 0:01:20]} 18. Nxf6+ {[%clk 0:01:26]}  Bxf6 {[%clk 0:01:18]} 19. Qg4 {[%clk 0:01:13]}  Ne5 {[%clk 0:00:39]} 20. Bxe5 {[%clk 0:00:51]}  Bxe5 {[%clk 0:00:39]} 21. Nc5 {[%clk 0:00:50]}  Qc6 {[%clk 0:00:39]} 22. Na4 {[%clk 0:00:49]}  Rab8 {[%clk 0:00:34]} 23. Rfe1 {[%clk 0:00:48]}  Qd6 {[%clk 0:00:31]} 24. Qh3 {[%clk 0:00:41]}  Bd4 {[%clk 0:00:29]} 25. Rad1 {[%clk 0:00:35]}  Qf4 {[%clk 0:00:25]} 26. Qg3 {[%clk 0:00:35]}  Qxg3 {[%clk 0:00:24]} 27. hxg3 {[%clk 0:00:36]}  Bc6 {[%clk 0:00:23]} 28. b3 {[%clk 0:00:23]}  Bxa4 {[%clk 0:00:17]} 29. bxa4 {[%clk 0:00:24]}  Bc3 {[%clk 0:00:14]} 30. Re4 {[%clk 0:00:25]}  b3 {[%clk 0:00:14]} 31. cxb3 {[%clk 0:00:23]}  Rfd8 {[%clk 0:00:14]} 32. Bc2 {[%clk 0:00:16]}  Rxd1+ {[%clk 0:00:13]} 33. Bxd1 {[%clk 0:00:17]}  Bxa5 {[%clk 0:00:13]} 34. Rd4 {[%clk 0:00:09]}  Bb4 {[%clk 0:00:13]} 35. Be2 {[%clk 0:00:09]}  a5 {[%clk 0:00:14]} 36. Rd7 {[%clk 0:00:09]}  g6 {[%clk 0:00:13]} 37. Bc4 {[%clk 0:00:09]}  h5 {[%clk 0:00:13]} 38. Kh2 {[%clk 0:00:08]}  Rc8 {[%clk 0:00:13]} 39. Kh3 {[%clk 0:00:07]}  Rc5 {[%clk 0:00:14]} 40. g4 {[%clk 0:00:05]}  Rg5 {[%clk 0:00:13]} 41. gxh5 {[%clk 0:00:05]}  Rxh5+ {[%clk 0:00:13]} 42. Kg3 {[%clk 0:00:05]}  Rf5 {[%clk 0:00:13]} 43. Rb7 {[%clk 0:00:03]}  Be1 {[%clk 0:00:12]} 44. Rb8+ {[%clk 0:00:02]}  Kg7 {[%clk 0:00:12]} 45. Rb7 {[%clk 0:00:03]}  Bxf2+ {[%clk 0:00:12]} 46. Kh3 {[%clk 0:00:03]}  Kf6 {[%clk 0:00:11]} 47. g4 {[%clk 0:00:03]}  Rf4 {[%clk 0:00:11]} 48. Rb5 {[%clk 0:00:02]}  Be1 {[%clk 0:00:11]} 49. g5+ {[%clk 0:00:02]}  Kg7 {[%clk 0:00:11]} 50. Rb7 {[%clk 0:00:02]}  Kf8 {[%clk 0:00:09]} 51. Kg2 {[%clk 0:00:02]}  Bb4 {[%clk 0:00:08]} 52. Kg3 {[%clk 0:00:01]}  Rf5 {[%clk 0:00:08]} 53. Kg4 {[%clk 0:00:02]}  Bd2 {[%clk 0:00:09]} 54. Rb5 {[%clk 0:00:02]}  Rxb5 {[%clk 0:00:09]} 55. axb5 {[%clk 0:00:01]}  Be3 {[%clk 0:00:09]} 56. Kh4 {[%clk 0:00:01]}  Ke7 {[%clk 0:00:09]} 57. Kg4 {[%clk 0:00:02]}  Kd6 {[%clk 0:00:10]} 58. Bd3 {[%clk 0:00:03]}  Ke5 {[%clk 0:00:10]} 59. Bc4 {[%clk 0:00:03]}  Kd6 {[%clk 0:00:10]} 60. Bd3 {[%clk 0:00:03]}  Kc5 {[%clk 0:00:10]} 61. Be2 {[%clk 0:00:03]}  Kb4 {[%clk 0:00:10]} 62. Bd1 {[%clk 0:00:03]}  Kxb5 {[%clk 0:00:11]} 63. Bc2 {[%clk 0:00:04]}  Kb4 {[%clk 0:00:11]} 64. Bd1 {[%clk 0:00:05]}  Kc3 {[%clk 0:00:11]} 65. Kh4 {[%clk 0:00:04]}  Kd2 {[%clk 0:00:12]} 66. Bf3 {[%clk 0:00:04]}  Kc2 {[%clk 0:00:12]} 67. Bc6 {[%clk 0:00:03]}  Kxb3 {[%clk 0:00:12]} 68. Be8 {[%clk 0:00:04]}  a4 {[%clk 0:00:10]} 69. Bxf7 {[%clk 0:00:05]}  a3 {[%clk 0:00:10]} 70. Bxe6+ {[%clk 0:00:04]}  Kb2 {[%clk 0:00:10]} 71. Kg4 {[%clk 0:00:02]}  a2 {[%clk 0:00:11]} 72. Bxa2 {[%clk 0:00:02]}  Kxa2 {[%clk 0:00:11]} 73. Kf3 {[%clk 0:00:03]}  Bxg5 {[%clk 0:00:11]} 0-1


[Site "https://www.chess.com"]

[Event "Titled Tuesday Blitz August 17 2021"]
[White "Mogirzan, Matei-Valeriu"]
[Black "Barp, Alberto"]
[WhiteFideId "1257455"]
[BlackFideId "872555"]
[WhiteElo "1733"]
[BlackElo "2229"]
[Result "0-1"]
[Round "07"]
[TimeControl "180+1"]
[Date "2021.08.17"]
[WhiteClock "0:00:01"]
[BlackClock "0:00:27"]

1. e4 {[%clk 0:03:00]}  c5 {[%clk 0:02:59]} 2. Nf3 {[%clk 0:03:00]}  a6 {[%clk 0:02:58]} 3. d4 {[%clk 0:02:57]}  cxd4 {[%clk 0:02:59]} 4. Nxd4 {[%clk 0:02:58]}  Nf6 {[%clk 0:02:59]} 5. Nc3 {[%clk 0:02:58]}  e5 {[%clk 0:03:00]} 6. Nb3 {[%clk 0:02:48]}  Bb4 {[%clk 0:03:00]} 7. Bg5 {[%clk 0:02:47]}  Qc7 {[%clk 0:02:44]} 8. Bd3 {[%clk 0:02:42]}  Bxc3+ {[%clk 0:02:29]} 9. bxc3 {[%clk 0:02:42]}  Qxc3+ {[%clk 0:02:30]} 10. Bd2 {[%clk 0:02:42]}  Qc7 {[%clk 0:02:29]} 11. O-O {[%clk 0:02:41]}  d6 {[%clk 0:02:29]} 12. f4 {[%clk 0:02:40]}  Nc6 {[%clk 0:02:26]} 13. Bc3 {[%clk 0:02:25]}  O-O {[%clk 0:02:20]} 14. fxe5 {[%clk 0:02:17]}  Nxe5 {[%clk 0:01:49]} 15. Bxe5 {[%clk 0:02:15]}  dxe5 {[%clk 0:01:46]} 16. Rxf6 {[%clk 0:02:04]}  gxf6 {[%clk 0:01:46]} 17. Qh5 {[%clk 0:02:03]}  Kh8 {[%clk 0:01:40]} 18. Rf1 {[%clk 0:02:01]}  Qe7 {[%clk 0:01:19]} 19. Nd2 {[%clk 0:01:50]}  Rg8 {[%clk 0:01:18]} 20. Nc4 {[%clk 0:01:34]}  Be6 {[%clk 0:01:17]} 21. Ne3 {[%clk 0:01:34]}  Rg5 {[%clk 0:01:15]} 22. Qh4 {[%clk 0:01:25]}  Rag8 {[%clk 0:01:13]} 23. g3 {[%clk 0:01:18]}  Qc5 {[%clk 0:01:08]} 24. Kf2 {[%clk 0:01:06]}  f5 {[%clk 0:01:07]} 25. Ke2 {[%clk 0:00:54]}  fxe4 {[%clk 0:00:53]} 26. Qxe4 {[%clk 0:00:23]}  f5 {[%clk 0:00:53]} 27. Nxf5 {[%clk 0:00:20]}  Rg4 {[%clk 0:00:41]} 28. Qe3 {[%clk 0:00:12]}  Qc7 {[%clk 0:00:32]} 29. Nh6 {[%clk 0:00:09]}  e4 {[%clk 0:00:30]} 30. Qd4+ {[%clk 0:00:03]}  Qg7 {[%clk 0:00:28]} 31. Qxg7+ {[%clk 0:00:01]}  Kxg7 {[%clk 0:00:27]} 0-1


[Site "https://www.chess.com"]

[Event "Titled Tuesday Blitz August 17 2021"]
[White "Murzin, Volodar"]
[Black "Bok, Benjamin"]
[WhiteFideId "44155573"]
[BlackFideId "1017063"]
[WhiteElo "2541"]
[BlackElo "2658"]
[Result "0-1"]
[Round "07"]
[TimeControl "180+1"]
[Date "2021.08.17"]
[WhiteClock "0:00:03"]
[BlackClock "0:00:15"]

1. e4 {[%clk 0:03:00]}  c5 {[%clk 0:02:58]} 2. Nf3 {[%clk 0:03:00]}  d6 {[%clk 0:02:59]} 3. Bb5+ {[%clk 0:03:00]}  Nd7 {[%clk 0:02:59]} 4. O-O {[%clk 0:02:59]}  Nf6 {[%clk 0:02:59]} 5. Re1 {[%clk 0:02:58]}  a6 {[%clk 0:02:59]} 6. Bf1 {[%clk 0:02:58]}  b6 {[%clk 0:02:50]} 7. d4 {[%clk 0:02:54]}  cxd4 {[%clk 0:02:44]} 8. Nxd4 {[%clk 0:02:55]}  Bb7 {[%clk 0:02:45]} 9. c4 {[%clk 0:02:52]}  Nxe4 {[%clk 0:02:30]} 10. Bd3 {[%clk 0:01:18]}  Nef6 {[%clk 0:02:27]} 11. Nf5 {[%clk 0:00:56]}  Ne5 {[%clk 0:02:18]} 12. Bc2 {[%clk 0:00:35]}  g6 {[%clk 0:02:18]} 13. Ba4+ {[%clk 0:00:23]}  b5 {[%clk 0:02:03]} 14. cxb5 {[%clk 0:00:20]}  gxf5 {[%clk 0:01:55]} 15. bxa6+ {[%clk 0:00:20]}  Bc6 {[%clk 0:01:53]} 16. Rxe5 {[%clk 0:00:20]}  Bxa4 {[%clk 0:01:33]} 17. Qxa4+ {[%clk 0:00:19]}  Qd7 {[%clk 0:01:33]} 18. Qxd7+ {[%clk 0:00:15]}  Kxd7 {[%clk 0:01:34]} 19. Rxf5 {[%clk 0:00:14]}  Rxa6 {[%clk 0:01:35]} 20. Nc3 {[%clk 0:00:13]}  Bg7 {[%clk 0:01:35]} 21. Bg5 {[%clk 0:00:13]}  Rb8 {[%clk 0:01:34]} 22. Re1 {[%clk 0:00:05]}  Rxb2 {[%clk 0:01:31]} 23. Bxf6 {[%clk 0:00:05]}  Bxf6 {[%clk 0:01:27]} 24. Nd5 {[%clk 0:00:05]}  Be5 {[%clk 0:01:17]} 25. f4 {[%clk 0:00:01]}  Ke6 {[%clk 0:01:03]} 26. Rh5 {[%clk 0:00:02]}  Raxa2 {[%clk 0:00:46]} 27. fxe5 {[%clk 0:00:02]}  Rxg2+ {[%clk 0:00:45]} 28. Kh1 {[%clk 0:00:02]}  Kxd5 {[%clk 0:00:45]} 29. e6+ {[%clk 0:00:03]}  Kc6 {[%clk 0:00:40]} 30. exf7 {[%clk 0:00:03]}  Rgf2 {[%clk 0:00:40]} 31. Rxh7 {[%clk 0:00:03]}  e5 {[%clk 0:00:32]} 32. Kg1 {[%clk 0:00:03]}  Rf6 {[%clk 0:00:20]} 33. Rf1 {[%clk 0:00:02]}  Rxf1+ {[%clk 0:00:18]} 34. Kxf1 {[%clk 0:00:03]}  Ra8 {[%clk 0:00:19]} 35. Rg7 {[%clk 0:00:02]}  Rf8 {[%clk 0:00:19]} 36. h4 {[%clk 0:00:03]}  Kd5 {[%clk 0:00:19]} 37. h5 {[%clk 0:00:03]}  Ke6 {[%clk 0:00:19]} 38. Rg6+ {[%clk 0:00:03]}  Kxf7 {[%clk 0:00:19]} 39. Ke2 {[%clk 0:00:03]}  Rd8 {[%clk 0:00:15]} 40. h6 {[%clk 0:00:03]}  Kxg6 {[%clk 0:00:15]} 0-1


[Site "https://www.chess.com"]

[Event "Titled Tuesday Blitz August 17 2021"]
[White "Ozen, Bahadir"]
[Black "Gerzhoy, Leonid"]
[WhiteFideId "6337058"]
[BlackFideId "2806126"]
[WhiteElo "2503"]
[BlackElo "2544"]
[Result "1-0"]
[Round "07"]
[TimeControl "180+1"]
[Date "2021.08.17"]
[WhiteClock "0:00:31"]
[BlackClock "0:00:05"]

1. Nf3 {[%clk 0:03:00]}  Nf6 {[%clk 0:02:59]} 2. b3 {[%clk 0:02:59]}  d5 {[%clk 0:02:58]} 3. e3 {[%clk 0:02:59]}  Bg4 {[%clk 0:02:57]} 4. Bb2 {[%clk 0:02:57]}  Nbd7 {[%clk 0:02:57]} 5. h3 {[%clk 0:02:54]}  Bh5 {[%clk 0:02:54]} 6. g4 {[%clk 0:02:42]}  Bg6 {[%clk 0:02:54]} 7. d3 {[%clk 0:02:42]}  e6 {[%clk 0:02:47]} 8. Nh4 {[%clk 0:02:39]}  Bd6 {[%clk 0:02:39]} 9. Nd2 {[%clk 0:02:38]}  Qe7 {[%clk 0:02:38]} 10. a3 {[%clk 0:02:38]}  O-O-O {[%clk 0:02:27]} 11. Bg2 {[%clk 0:02:37]}  c6 {[%clk 0:02:26]} 12. Qe2 {[%clk 0:02:36]}  e5 {[%clk 0:02:13]} 13. c4 {[%clk 0:02:23]}  dxc4 {[%clk 0:01:59]} 14. Nxc4 {[%clk 0:02:17]}  Bc7 {[%clk 0:01:59]} 15. Nxg6 {[%clk 0:02:16]}  hxg6 {[%clk 0:01:58]} 16. b4 {[%clk 0:02:17]}  Nb6 {[%clk 0:01:52]} 17. Qc2 {[%clk 0:02:10]}  Nxc4 {[%clk 0:01:50]} 18. Qxc4 {[%clk 0:02:07]}  Nd5 {[%clk 0:01:38]} 19. b5 {[%clk 0:01:28]}  Nb6 {[%clk 0:01:14]} 20. Qb3 {[%clk 0:01:28]}  c5 {[%clk 0:01:10]} 21. Rc1 {[%clk 0:01:23]}  f5 {[%clk 0:01:02]} 22. a4 {[%clk 0:01:21]}  fxg4 {[%clk 0:00:48]} 23. a5 {[%clk 0:01:20]}  Nd7 {[%clk 0:00:42]} 24. a6 {[%clk 0:01:15]}  Nb6 {[%clk 0:00:33]} 25. Bxb7+ {[%clk 0:01:07]}  Kb8 {[%clk 0:00:33]} 26. hxg4 {[%clk 0:01:03]}  Rxh1+ {[%clk 0:00:30]} 27. Bxh1 {[%clk 0:01:04]}  Qh4 {[%clk 0:00:25]} 28. Be4 {[%clk 0:01:00]}  Qxg4 {[%clk 0:00:22]} 29. Qf7 {[%clk 0:00:58]}  Qg1+ {[%clk 0:00:14]} 30. Ke2 {[%clk 0:00:54]}  Qg4+ {[%clk 0:00:12]} 31. Ke1 {[%clk 0:00:45]}  Qg1+ {[%clk 0:00:11]} 32. Kd2 {[%clk 0:00:45]}  Qh2 {[%clk 0:00:08]} 33. Rxc5 {[%clk 0:00:42]}  Rc8 {[%clk 0:00:06]} 34. Bxe5 {[%clk 0:00:38]}  Nc4+ {[%clk 0:00:05]} 35. Qxc4 {[%clk 0:00:31]} 1-0


[Site "https://www.chess.com"]

[Event "Titled Tuesday Blitz August 17 2021"]
[White "Pavlov, Danila"]
[Black "Volkov, Maksim"]
[WhiteFideId "34126594"]
[BlackFideId "54123070"]
[WhiteElo "2323"]
[BlackElo "2113"]
[Result "0-1"]
[Round "07"]
[TimeControl "180+1"]
[Date "2021.08.17"]
[WhiteClock "0:00:51"]
[BlackClock "0:01:20"]

1. e4 {[%clk 0:03:00]}  c5 {[%clk 0:02:43]} 2. Nf3 {[%clk 0:02:59]}  e6 {[%clk 0:02:41]} 3. d4 {[%clk 0:03:00]}  cxd4 {[%clk 0:02:42]} 4. Nxd4 {[%clk 0:03:00]}  Nc6 {[%clk 0:02:43]} 5. Nc3 {[%clk 0:03:01]}  Qc7 {[%clk 0:02:42]} 6. g3 {[%clk 0:03:01]}  d6 {[%clk 0:02:40]} 7. Bg2 {[%clk 0:03:01]}  Bd7 {[%clk 0:02:41]} 8. O-O {[%clk 0:03:01]}  a6 {[%clk 0:02:41]} 9. Be3 {[%clk 0:03:00]}  Rc8 {[%clk 0:02:40]} 10. Nb3 {[%clk 0:02:59]}  h5 {[%clk 0:02:38]} 11. f4 {[%clk 0:02:58]}  h4 {[%clk 0:02:37]} 12. g4 {[%clk 0:02:58]}  Be7 {[%clk 0:02:34]} 13. h3 {[%clk 0:02:57]}  Nf6 {[%clk 0:02:32]} 14. Kh1 {[%clk 0:02:56]}  b5 {[%clk 0:02:30]} 15. a3 {[%clk 0:02:56]}  Na5 {[%clk 0:02:26]} 16. Nxa5 {[%clk 0:02:44]}  Qxa5 {[%clk 0:02:27]} 17. Qd3 {[%clk 0:02:43]}  Bc6 {[%clk 0:02:19]} 18. Rfd1 {[%clk 0:02:40]}  Qc7 {[%clk 0:02:15]} 19. Bd4 {[%clk 0:02:33]}  e5 {[%clk 0:02:11]} 20. Be3 {[%clk 0:02:33]}  Bb7 {[%clk 0:02:05]} 21. g5 {[%clk 0:02:26]}  Nh5 {[%clk 0:02:03]} 22. fxe5 {[%clk 0:02:18]}  dxe5 {[%clk 0:02:00]} 23. Nd5 {[%clk 0:02:09]}  Bxd5 {[%clk 0:01:57]} 24. exd5 {[%clk 0:02:09]}  Bd6 {[%clk 0:01:51]} 25. c3 {[%clk 0:02:05]}  Ng3+ {[%clk 0:01:50]} 26. Kg1 {[%clk 0:02:04]}  Qe7 {[%clk 0:01:51]} 27. a4 {[%clk 0:02:01]}  O-O {[%clk 0:01:46]} 28. axb5 {[%clk 0:01:59]}  axb5 {[%clk 0:01:47]} 29. Ra7 {[%clk 0:01:25]}  Qe8 {[%clk 0:01:43]} 30. Rb7 {[%clk 0:01:08]}  b4 {[%clk 0:01:34]} 31. cxb4 {[%clk 0:01:07]}  e4 {[%clk 0:01:34]} 32. Qd4 {[%clk 0:01:01]}  Ne2+ {[%clk 0:01:33]} 33. Kh1 {[%clk 0:01:00]}  Nxd4 {[%clk 0:01:34]} 34. Bxd4 {[%clk 0:00:59]}  Qa4 {[%clk 0:01:32]} 35. Rf1 {[%clk 0:00:56]}  Qc2 {[%clk 0:01:29]} 36. Bc3 {[%clk 0:00:53]}  Qd3 {[%clk 0:01:23]} 37. g6 {[%clk 0:00:52]}  Qg3 {[%clk 0:01:21]} 38. gxf7+ {[%clk 0:00:50]}  Rxf7 {[%clk 0:01:21]} 39. Kg1 {[%clk 0:00:51]}  Rxb7 {[%clk 0:01:20]} 0-1


[Site "https://www.chess.com"]

[Event "Titled Tuesday Blitz August 17 2021"]
[White "Poormosavi, Seyed Kian"]
[Black "Obregon, Andres Carlos"]
[WhiteFideId "12585807"]
[BlackFideId "111724"]
[WhiteElo "2134"]
[BlackElo "2572"]
[Result "0-1"]
[Round "07"]
[TimeControl "180+1"]
[Date "2021.08.17"]
[WhiteClock "0:02:13"]
[BlackClock "0:02:45"]

1. e4 {[%clk 0:02:38]}  d6 {[%clk 0:02:57]} 2. d4 {[%clk 0:02:37]}  g6 {[%clk 0:02:57]} 3. Bd3 {[%clk 0:02:37]}  Bg7 {[%clk 0:02:57]} 4. c3 {[%clk 0:02:38]}  Nf6 {[%clk 0:02:57]} 5. h4 {[%clk 0:02:38]}  e5 {[%clk 0:02:56]} 6. Nf3 {[%clk 0:02:31]}  Bg4 {[%clk 0:02:53]} 7. Nbd2 {[%clk 0:02:27]}  exd4 {[%clk 0:02:52]} 8. Qb3 {[%clk 0:02:25]}  dxc3 {[%clk 0:02:50]} 9. bxc3 {[%clk 0:02:20]}  Nbd7 {[%clk 0:02:49]} 10. Qxb7 {[%clk 0:02:15]}  Nc5 {[%clk 0:02:46]} 11. Bb5+ {[%clk 0:02:13]}  Kf8 {[%clk 0:02:45]} 0-1


[Site "https://www.chess.com"]

[Event "Titled Tuesday Blitz August 17 2021"]
[White "Potapova, Margarita"]
[Black "Rodchenkov, Sergey D."]
[WhiteFideId "14126869"]
[BlackFideId "4168712"]
[WhiteElo "2214"]
[BlackElo "2306"]
[Result "1-0"]
[Round "07"]
[TimeControl "180+1"]
[Date "2021.08.17"]
[WhiteClock "0:00:04"]
[BlackClock "0:00:14"]

1. c4 {[%clk 0:02:53]}  e5 {[%clk 0:02:59]} 2. g3 {[%clk 0:02:51]}  Nf6 {[%clk 0:02:58]} 3. Bg2 {[%clk 0:02:50]}  Bb4 {[%clk 0:02:55]} 4. a3 {[%clk 0:02:45]}  Be7 {[%clk 0:02:52]} 5. Nf3 {[%clk 0:02:41]}  d6 {[%clk 0:02:51]} 6. d4 {[%clk 0:02:34]}  exd4 {[%clk 0:02:49]} 7. Nxd4 {[%clk 0:02:33]}  O-O {[%clk 0:02:50]} 8. O-O {[%clk 0:02:32]}  Nbd7 {[%clk 0:02:50]} 9. b4 {[%clk 0:02:31]}  Ne5 {[%clk 0:02:48]} 10. Qc2 {[%clk 0:02:26]}  Bg4 {[%clk 0:02:45]} 11. Bb2 {[%clk 0:02:21]}  Qd7 {[%clk 0:02:40]} 12. f4 {[%clk 0:02:15]}  Ng6 {[%clk 0:02:29]} 13. f5 {[%clk 0:02:15]}  Ne5 {[%clk 0:02:25]} 14. h3 {[%clk 0:02:16]}  Bh5 {[%clk 0:02:24]} 15. g4 {[%clk 0:02:16]}  Bxg4 {[%clk 0:02:24]} 16. hxg4 {[%clk 0:02:16]}  Nfxg4 {[%clk 0:02:25]} 17. Nd2 {[%clk 0:01:19]}  Bg5 {[%clk 0:02:13]} 18. N2f3 {[%clk 0:01:11]}  Be3+ {[%clk 0:02:12]} 19. Kh1 {[%clk 0:01:11]}  Qe7 {[%clk 0:02:07]} 20. Qe4 {[%clk 0:00:55]}  Nf2+ {[%clk 0:01:54]} 21. Rxf2 {[%clk 0:00:55]}  Bxf2 {[%clk 0:01:55]} 22. Rf1 {[%clk 0:00:45]}  Bxd4 {[%clk 0:01:49]} 23. Qxd4 {[%clk 0:00:44]}  Rfe8 {[%clk 0:01:40]} 24. Nxe5 {[%clk 0:00:38]}  dxe5 {[%clk 0:01:41]} 25. Qg4 {[%clk 0:00:38]}  f6 {[%clk 0:01:36]} 26. Bd5+ {[%clk 0:00:38]}  Kh8 {[%clk 0:01:36]} 27. Kg2 {[%clk 0:00:38]}  c6 {[%clk 0:01:32]} 28. Be6 {[%clk 0:00:38]}  g5 {[%clk 0:01:24]} 29. Rh1 {[%clk 0:00:26]}  Qg7 {[%clk 0:01:22]} 30. Bc1 {[%clk 0:00:19]}  Red8 {[%clk 0:01:20]} 31. Rh5 {[%clk 0:00:18]}  Rd4 {[%clk 0:01:18]} 32. Qh3 {[%clk 0:00:16]}  g4 {[%clk 0:01:09]} 33. Qh4 {[%clk 0:00:15]}  g3 {[%clk 0:01:03]} 34. Qh3 {[%clk 0:00:14]}  Re8 {[%clk 0:00:50]} 35. Bg5 {[%clk 0:00:12]}  Re7 {[%clk 0:00:21]} 36. Bh6 {[%clk 0:00:10]}  Qg4 {[%clk 0:00:20]} 37. Qxg4 {[%clk 0:00:08]}  Rxg4 {[%clk 0:00:21]} 38. Bf8 {[%clk 0:00:08]}  Re8 {[%clk 0:00:21]} 39. Bc5 {[%clk 0:00:06]}  Rd8 {[%clk 0:00:20]} 40. Be7 {[%clk 0:00:05]}  Re8 {[%clk 0:00:16]} 41. Bxf6+ {[%clk 0:00:05]}  Rg7 {[%clk 0:00:17]} 42. Rg5 {[%clk 0:00:05]}  Re7 {[%clk 0:00:13]} 43. Bxe7 {[%clk 0:00:04]}  Rxe7 {[%clk 0:00:14]} 44. Rg8# {[%clk 0:00:04]} 1-0


[Site "https://www.chess.com"]